[Event "Titled Tuesday Blitz February 07 Late 2023"]
[White "Reprintsev, Alexander"]
[Black "Van Dael, Siem"]
[WhiteFideId "14100541"]
[BlackFideId "1049771"]
[WhiteElo "2253"]
[BlackElo "2319"]
[Result "0-1"]
[Round "05"]
[TimeControl "180+2"]
[Date "2023.02.07"]
[WhiteClock "0:00:12"]
[BlackClock "0:00:09"]

1. e4 {[%clk 0:03:00]}  c5 {[%clk 0:02:59]} 2. b3 {[%clk 0:02:52]}  Nc6 {[%clk 0:02:58]} 3. Bb2 {[%clk 0:02:51]}  e5 {[%clk 0:02:57]} 4. f4 {[%clk 0:02:51]}  exf4 {[%clk 0:02:54]} 5. Qf3 {[%clk 0:02:44]}  Qh4+ {[%clk 0:02:41]} 6. g3 {[%clk 0:02:39]}  fxg3 {[%clk 0:02:41]} 7. hxg3 {[%clk 0:02:39]}  Qe7 {[%clk 0:02:26]} 8. Bc4 {[%clk 0:02:39]}  Nf6 {[%clk 0:02:20]} 9. Bxf6 {[%clk 0:02:38]}  Qxf6 {[%clk 0:02:18]} 10. Qxf6 {[%clk 0:02:38]}  gxf6 {[%clk 0:02:19]} 11. Nc3 {[%clk 0:02:38]}  Bd6 {[%clk 0:02:05]} 12. Nge2 {[%clk 0:02:36]}  Be5 {[%clk 0:02:02]} 13. O-O-O {[%clk 0:02:34]}  a6 {[%clk 0:02:03]} 14. Nf4 {[%clk 0:02:15]}  b5 {[%clk 0:02:01]} 15. Bd5 {[%clk 0:02:15]}  Bb7 {[%clk 0:02:01]} 16. Nce2 {[%clk 0:02:13]}  O-O-O {[%clk 0:01:53]} 17. c3 {[%clk 0:02:11]}  Ne7 {[%clk 0:01:51]} 18. Bxb7+ {[%clk 0:02:00]}  Kxb7 {[%clk 0:01:52]} 19. d4 {[%clk 0:01:57]}  cxd4 {[%clk 0:01:52]} 20. cxd4 {[%clk 0:01:57]}  Bc7 {[%clk 0:01:48]} 21. Kd2 {[%clk 0:01:57]}  d5 {[%clk 0:01:48]} 22. exd5 {[%clk 0:01:49]}  Nxd5 {[%clk 0:01:47]} 23. Nxd5 {[%clk 0:01:49]}  Rxd5 {[%clk 0:01:48]} 24. Rh6 {[%clk 0:01:45]}  Rd6 {[%clk 0:01:34]} 25. Rf1 {[%clk 0:01:43]}  Bd8 {[%clk 0:01:22]} 26. Kd3 {[%clk 0:01:40]}  Be7 {[%clk 0:01:13]} 27. Nc3 {[%clk 0:01:32]}  Rhd8 {[%clk 0:01:11]} 28. Rf4 {[%clk 0:01:31]}  Re6 {[%clk 0:00:58]} 29. Ne4 {[%clk 0:01:24]}  f5 {[%clk 0:00:54]} 30. Rxe6 {[%clk 0:01:10]}  fxe6 {[%clk 0:00:53]} 31. Nc3 {[%clk 0:00:56]}  Bd6 {[%clk 0:00:48]} 32. Rh4 {[%clk 0:00:52]}  Bxg3 {[%clk 0:00:48]} 33. Rxh7+ {[%clk 0:00:50]}  Kb6 {[%clk 0:00:45]} 34. Re7 {[%clk 0:00:47]}  e5 {[%clk 0:00:39]} 35. d5 {[%clk 0:00:36]}  e4+ {[%clk 0:00:34]} 36. Kd4 {[%clk 0:00:36]}  Rd6 {[%clk 0:00:30]} 37. Re6 {[%clk 0:00:30]}  Kc7 {[%clk 0:00:26]} 38. Re7+ {[%clk 0:00:28]}  Rd7 {[%clk 0:00:24]} 39. Re6 {[%clk 0:00:19]}  Rd6 {[%clk 0:00:18]} 40. Re7+ {[%clk 0:00:18]}  Kb6 {[%clk 0:00:17]} 41. Re6 {[%clk 0:00:18]}  a5 {[%clk 0:00:11]} 42. Rxd6+ {[%clk 0:00:16]}  Bxd6 {[%clk 0:00:12]} 43. a4 {[%clk 0:00:15]}  bxa4 {[%clk 0:00:11]} 44. bxa4 {[%clk 0:00:09]}  Bf8 {[%clk 0:00:09]} 45. Nb5 {[%clk 0:00:09]}  Bg7+ {[%clk 0:00:09]} 46. Ke3 {[%clk 0:00:09]}  Kc5 {[%clk 0:00:08]} 47. Kf4 {[%clk 0:00:10]}  Kxd5 {[%clk 0:00:07]} 48. Kxf5 {[%clk 0:00:10]}  e3 {[%clk 0:00:08]} 49. Na3 {[%clk 0:00:11]}  e2 {[%clk 0:00:08]} 50. Nc2 {[%clk 0:00:11]}  Bc3 {[%clk 0:00:07]} 51. Kf4 {[%clk 0:00:11]}  e1=Q {[%clk 0:00:07]} 52. Nxe1 {[%clk 0:00:11]}  Bxe1 {[%clk 0:00:08]} 53. Ke3 {[%clk 0:00:12]}  Kc4 {[%clk 0:00:09]} 0-1


[Site "https://www.chess.com"]

[Event "Titled Tuesday Blitz February 07 Late 2023"]
[White "Toktomushev, Teimur"]
[Black "Schekachikhin, Maksim"]
[WhiteFideId "14176726"]
[BlackFideId "24177830"]
[WhiteElo "2239"]
[BlackElo "2371"]
[Result "0-1"]
[Round "05"]
[TimeControl "180+2"]
[Date "2023.02.07"]
[WhiteClock "0:00:06"]
[BlackClock "0:00:12"]

1. d4 {[%clk 0:02:59]}  Nf6 {[%clk 0:02:57]} 2. c4 {[%clk 0:02:59]}  b6 {[%clk 0:02:57]} 3. Nf3 {[%clk 0:02:47]}  Bb7 {[%clk 0:02:56]} 4. g3 {[%clk 0:02:46]}  g6 {[%clk 0:02:55]} 5. Bg2 {[%clk 0:02:46]}  Bg7 {[%clk 0:02:55]} 6. O-O {[%clk 0:02:45]}  O-O {[%clk 0:02:55]} 7. Re1 {[%clk 0:02:06]}  e6 {[%clk 0:02:52]} 8. Qc2 {[%clk 0:01:47]}  d5 {[%clk 0:02:48]} 9. Ne5 {[%clk 0:01:19]}  c6 {[%clk 0:02:36]} 10. Nc3 {[%clk 0:01:13]}  Nbd7 {[%clk 0:02:34]} 11. e4 {[%clk 0:00:30]}  dxe4 {[%clk 0:02:29]} 12. Nxe4 {[%clk 0:00:29]}  Nxe4 {[%clk 0:02:29]} 13. Qxe4 {[%clk 0:00:27]}  Nxe5 {[%clk 0:02:27]} 14. dxe5 {[%clk 0:00:28]}  Qe7 {[%clk 0:02:23]} 15. Bf4 {[%clk 0:00:17]}  Rad8 {[%clk 0:02:09]} 16. Qe3 {[%clk 0:00:11]}  c5 {[%clk 0:02:06]} 17. Rad1 {[%clk 0:00:09]}  Bxg2 {[%clk 0:02:05]} 18. Kxg2 {[%clk 0:00:09]}  Qb7+ {[%clk 0:02:05]} 19. Qf3 {[%clk 0:00:06]}  Qa6 {[%clk 0:02:06]} 20. Rxd8 {[%clk 0:00:03]}  Rxd8 {[%clk 0:02:05]} 21. Rd1 {[%clk 0:00:02]}  Rf8 {[%clk 0:01:52]} 22. Qb3 {[%clk 0:00:01]}  h6 {[%clk 0:01:43]} 23. Rd6 {[%clk 0:00:01]}  g5 {[%clk 0:01:43]} 24. Be3 {[%clk 0:00:02]}  Bxe5 {[%clk 0:01:42]} 25. Rd7 {[%clk 0:00:03]}  Ra8 {[%clk 0:01:12]} 26. Qd3 {[%clk 0:00:03]}  Qc8 {[%clk 0:01:11]} 27. Re7 {[%clk 0:00:02]}  Qc6+ {[%clk 0:01:10]} 28. f3 {[%clk 0:00:02]}  a5 {[%clk 0:01:06]} 29. Qd7 {[%clk 0:00:02]}  Qxd7 {[%clk 0:01:06]} 30. Rxd7 {[%clk 0:00:03]}  Bxb2 {[%clk 0:01:04]} 31. Rb7 {[%clk 0:00:03]}  Rd8 {[%clk 0:00:48]} 32. Rxb6 {[%clk 0:00:03]}  Ba3 {[%clk 0:00:48]} 33. Rb5 {[%clk 0:00:02]}  a4 {[%clk 0:00:39]} 34. Bxc5 {[%clk 0:00:02]}  Rd2+ {[%clk 0:00:38]} 35. Kh3 {[%clk 0:00:02]}  Bxc5 {[%clk 0:00:33]} 36. Rxc5 {[%clk 0:00:03]}  Rxa2 {[%clk 0:00:33]} 37. Ra5 {[%clk 0:00:04]}  a3 {[%clk 0:00:33]} 38. c5 {[%clk 0:00:04]}  Kg7 {[%clk 0:00:31]} 39. c6 {[%clk 0:00:04]}  Rc2 {[%clk 0:00:29]} 40. Rxa3 {[%clk 0:00:04]}  Rxc6 {[%clk 0:00:30]} 41. Re3 {[%clk 0:00:05]}  h5 {[%clk 0:00:27]} 42. Re2 {[%clk 0:00:03]}  Rc4 {[%clk 0:00:27]} 43. Kg2 {[%clk 0:00:03]}  Kg6 {[%clk 0:00:27]} 44. h3 {[%clk 0:00:03]}  h4 {[%clk 0:00:26]} 45. gxh4 {[%clk 0:00:02]}  Rxh4 {[%clk 0:00:25]} 46. Ra2 {[%clk 0:00:03]}  Rb4 {[%clk 0:00:24]} 47. Ra8 {[%clk 0:00:04]}  Kf5 {[%clk 0:00:22]} 48. Rg8 {[%clk 0:00:03]}  Kf4 {[%clk 0:00:20]} 49. Ra8 {[%clk 0:00:02]}  Rb2+ {[%clk 0:00:19]} 50. Kg1 {[%clk 0:00:03]}  Kxf3 {[%clk 0:00:18]} 51. Rf8 {[%clk 0:00:01]}  f5 {[%clk 0:00:18]} 52. Rg8 {[%clk 0:00:02]}  Kf4 {[%clk 0:00:18]} 53. Re8 {[%clk 0:00:02]}  e5 {[%clk 0:00:18]} 54. Ra8 {[%clk 0:00:02]}  e4 {[%clk 0:00:18]} 55. Ra4 {[%clk 0:00:02]}  Kf3 {[%clk 0:00:18]} 56. Ra5 {[%clk 0:00:03]}  f4 {[%clk 0:00:18]} 57. Rxg5 {[%clk 0:00:03]}  Rb1+ {[%clk 0:00:17]} 58. Kh2 {[%clk 0:00:03]}  e3 {[%clk 0:00:18]} 59. Rg2 {[%clk 0:00:03]}  Ke4 {[%clk 0:00:18]} 60. Rg8 {[%clk 0:00:02]}  f3 {[%clk 0:00:16]} 61. Re8+ {[%clk 0:00:03]}  Kd3 {[%clk 0:00:16]} 62. Rd8+ {[%clk 0:00:02]}  Ke2 {[%clk 0:00:16]} 63. Kg3 {[%clk 0:00:01]}  Rg1+ {[%clk 0:00:15]} 64. Kf4 {[%clk 0:00:01]}  f2 {[%clk 0:00:16]} 65. Ke4 {[%clk 0:00:01]}  f1=Q {[%clk 0:00:15]} 66. Rd2+ {[%clk 0:00:02]}  Kxd2 {[%clk 0:00:15]} 67. Ke5 {[%clk 0:00:03]}  Qxh3 {[%clk 0:00:13]} 68. Kd6 {[%clk 0:00:04]}  Rg6+ {[%clk 0:00:13]} 69. Kc5 {[%clk 0:00:05]}  Qf5+ {[%clk 0:00:13]} 70. Kd4 {[%clk 0:00:06]}  Rg4# {[%clk 0:00:12]} 0-1


[Site "https://www.chess.com"]

[Event "Titled Tuesday Blitz February 07 Late 2023"]
[White "Seletsky, Grigory"]
[Black "Smith, Garrett L"]
[WhiteFideId "14112191"]
[BlackFideId "2024829"]
[WhiteElo "2259"]
[BlackElo "2047"]
[Result "1-0"]
[Round "05"]
[TimeControl "180+2"]
[Date "2023.02.07"]
[WhiteClock "0:01:25"]
[BlackClock "0:00:24"]

1. e4 {[%clk 0:03:00]}  c5 {[%clk 0:02:59]} 2. Nc3 {[%clk 0:03:00]}  Nc6 {[%clk 0:02:59]} 3. d3 {[%clk 0:03:00]}  g6 {[%clk 0:02:59]} 4. Be3 {[%clk 0:03:01]}  d6 {[%clk 0:02:54]} 5. d4 {[%clk 0:02:59]}  cxd4 {[%clk 0:02:51]} 6. Bxd4 {[%clk 0:03:00]}  Nxd4 {[%clk 0:02:46]} 7. Qxd4 {[%clk 0:03:01]}  Nf6 {[%clk 0:02:45]} 8. e5 {[%clk 0:03:00]}  dxe5 {[%clk 0:02:42]} 9. Bb5+ {[%clk 0:03:01]}  Bd7 {[%clk 0:02:41]} 10. Qxe5 {[%clk 0:03:00]}  Bg7 {[%clk 0:02:13]} 11. O-O-O {[%clk 0:02:58]}  O-O {[%clk 0:01:24]} 12. Bxd7 {[%clk 0:02:56]}  Nxd7 {[%clk 0:01:24]} 13. Qb5 {[%clk 0:02:55]}  Bxc3 {[%clk 0:01:07]} 14. bxc3 {[%clk 0:02:56]}  Qb6 {[%clk 0:01:04]} 15. Qxd7 {[%clk 0:02:53]}  Rfd8 {[%clk 0:00:57]} 16. Qg4 {[%clk 0:02:53]}  Rxd1+ {[%clk 0:00:43]} 17. Qxd1 {[%clk 0:02:51]}  Rd8 {[%clk 0:00:44]} 18. Qf3 {[%clk 0:02:43]}  Qc5 {[%clk 0:00:41]} 19. Ne2 {[%clk 0:02:37]}  Qa3+ {[%clk 0:00:34]} 20. Kb1 {[%clk 0:02:37]}  Rd6 {[%clk 0:00:28]} 21. Nc1 {[%clk 0:02:28]}  Rb6+ {[%clk 0:00:28]} 22. Nb3 {[%clk 0:02:28]}  a5 {[%clk 0:00:29]} 23. Qe3 {[%clk 0:02:19]}  Rc6 {[%clk 0:00:28]} 24. Rd1 {[%clk 0:01:48]}  a4 {[%clk 0:00:26]} 25. Rd8+ {[%clk 0:01:47]}  Kg7 {[%clk 0:00:26]} 26. Qd4+ {[%clk 0:01:45]}  f6 {[%clk 0:00:25]} 27. Na5 {[%clk 0:01:30]}  Rc5 {[%clk 0:00:24]} 28. Qb4 {[%clk 0:01:25]} 1-0


[Site "https://www.chess.com"]

[Event "Titled Tuesday Blitz February 07 Late 2023"]
[White "Girsh, Daniel"]
[Black "Sabar, Ethmane Daouda"]
[WhiteFideId "30949190"]
[BlackFideId "19600097"]
[WhiteElo "2123"]
[BlackElo "2040"]
[Result "0-1"]
[Round "05"]
[TimeControl "180+2"]
[Date "2023.02.07"]
[WhiteClock "0:00:13"]
[BlackClock "0:00:14"]

1. e4 {[%clk 0:03:00]}  e5 {[%clk 0:02:59]} 2. Nf3 {[%clk 0:03:00]}  Nc6 {[%clk 0:02:58]} 3. Bb5 {[%clk 0:03:00]}  f5 {[%clk 0:02:57]} 4. Nc3 {[%clk 0:03:00]}  fxe4 {[%clk 0:02:56]} 5. Nxe4 {[%clk 0:03:00]}  d5 {[%clk 0:02:56]} 6. Nxe5 {[%clk 0:02:59]}  dxe4 {[%clk 0:02:55]} 7. Nxc6 {[%clk 0:02:59]}  Qg5 {[%clk 0:02:56]} 8. Nxa7+ {[%clk 0:02:46]}  Kd8 {[%clk 0:02:47]} 9. d3 {[%clk 0:02:35]}  Qxg2 {[%clk 0:02:37]} 10. dxe4+ {[%clk 0:02:35]}  Bd6 {[%clk 0:02:35]} 11. Rf1 {[%clk 0:02:04]}  Qxe4+ {[%clk 0:02:30]} 12. Be3 {[%clk 0:02:02]}  Rxa7 {[%clk 0:02:27]} 13. Qh5 {[%clk 0:01:43]}  Nf6 {[%clk 0:02:22]} 14. Qg5 {[%clk 0:01:36]}  Ra5 {[%clk 0:01:39]} 15. Qxg7 {[%clk 0:01:31]}  Rf8 {[%clk 0:01:33]} 16. Bd3 {[%clk 0:01:24]}  Qb4+ {[%clk 0:01:21]} 17. Ke2 {[%clk 0:01:16]}  Re5 {[%clk 0:00:43]} 18. Rad1 {[%clk 0:01:06]}  Bd7 {[%clk 0:00:35]} 19. Bxh7 {[%clk 0:00:35]}  Nxh7 {[%clk 0:00:20]} 20. Qxh7 {[%clk 0:00:23]}  Bb5+ {[%clk 0:00:17]} 21. Rd3 {[%clk 0:00:23]}  Qxb2 {[%clk 0:00:17]} 22. Kd2 {[%clk 0:00:13]}  Qb4+ {[%clk 0:00:11]} 23. Ke2 {[%clk 0:00:10]}  Qe4 {[%clk 0:00:11]} 24. Rd1 {[%clk 0:00:09]}  Qxh7 {[%clk 0:00:11]} 25. c3 {[%clk 0:00:08]}  Bxd3+ {[%clk 0:00:10]} 26. Rxd3 {[%clk 0:00:09]}  Rxe3+ {[%clk 0:00:09]} 27. Rxe3 {[%clk 0:00:09]}  Qh5+ {[%clk 0:00:08]} 28. Kd2 {[%clk 0:00:08]}  Re8 {[%clk 0:00:08]} 29. Kd3 {[%clk 0:00:08]}  Rxe3+ {[%clk 0:00:08]} 30. fxe3 {[%clk 0:00:09]}  Qxh2 {[%clk 0:00:08]} 31. e4 {[%clk 0:00:10]}  Qe5 {[%clk 0:00:09]} 32. Ke3 {[%clk 0:00:10]}  Qxc3+ {[%clk 0:00:09]} 33. Ke2 {[%clk 0:00:09]}  Qa3 {[%clk 0:00:10]} 34. Kf2 {[%clk 0:00:09]}  Qxa2+ {[%clk 0:00:10]} 35. Kf3 {[%clk 0:00:10]}  Qe6 {[%clk 0:00:10]} 36. Ke3 {[%clk 0:00:10]}  Qe5 {[%clk 0:00:11]} 37. Kd3 {[%clk 0:00:11]}  b5 {[%clk 0:00:12]} 38. Ke3 {[%clk 0:00:11]}  b4 {[%clk 0:00:13]} 39. Kd3 {[%clk 0:00:12]}  b3 {[%clk 0:00:13]} 40. Kc4 {[%clk 0:00:13]}  b2 {[%clk 0:00:14]} 41. Kd3 {[%clk 0:00:12]}  b1=Q+ {[%clk 0:00:14]} 42. Kd2 {[%clk 0:00:13]}  Qbxe4 {[%clk 0:00:15]} 43. Kc1 {[%clk 0:00:13]}  Qe2 {[%clk 0:00:14]} 44. Kb1 {[%clk 0:00:13]}  Q5b2# {[%clk 0:00:14]} 0-1


[Site "https://www.chess.com"]

[Event "Titled Tuesday Blitz February 07 Late 2023"]
[White "Sztokbant, Bernardo Vainzoff"]
[Black "Hoffmann, Asa"]
[WhiteFideId "2115956"]
[BlackFideId "2001470"]
[WhiteElo "2213"]
[BlackElo "2185"]
[Result "1-0"]
[Round "05"]
[TimeControl "180+2"]
[Date "2023.02.07"]
[WhiteClock "0:00:34"]
[BlackClock "0:00:37"]

1. e4 {[%clk 0:02:59]}  d6 {[%clk 0:02:53]} 2. d4 {[%clk 0:02:59]}  Nf6 {[%clk 0:02:52]} 3. Nc3 {[%clk 0:02:59]}  c6 {[%clk 0:02:52]} 4. Nf3 {[%clk 0:03:00]}  Bg4 {[%clk 0:02:51]} 5. Be3 {[%clk 0:03:00]}  e6 {[%clk 0:02:51]} 6. Be2 {[%clk 0:02:59]}  d5 {[%clk 0:02:51]} 7. e5 {[%clk 0:02:54]}  Nfd7 {[%clk 0:02:50]} 8. h3 {[%clk 0:02:51]}  Bh5 {[%clk 0:02:50]} 9. Nd2 {[%clk 0:02:46]}  Bg6 {[%clk 0:02:49]} 10. Bd3 {[%clk 0:02:38]}  c5 {[%clk 0:02:39]} 11. f4 {[%clk 0:02:23]}  cxd4 {[%clk 0:02:38]} 12. Bxd4 {[%clk 0:02:24]}  Nc6 {[%clk 0:02:37]} 13. Bf2 {[%clk 0:02:24]}  Bc5 {[%clk 0:02:26]} 14. O-O {[%clk 0:02:23]}  Bxf2+ {[%clk 0:02:18]} 15. Rxf2 {[%clk 0:02:24]}  Nc5 {[%clk 0:02:17]} 16. Nf3 {[%clk 0:02:23]}  a6 {[%clk 0:02:12]} 17. Ne2 {[%clk 0:02:23]}  Nxd3 {[%clk 0:02:07]} 18. cxd3 {[%clk 0:02:24]}  Qb6 {[%clk 0:02:06]} 19. Qd2 {[%clk 0:02:16]}  O-O-O {[%clk 0:02:03]} 20. Rc1 {[%clk 0:02:16]}  Kb8 {[%clk 0:02:03]} 21. Nc3 {[%clk 0:02:12]}  Rc8 {[%clk 0:02:01]} 22. Na4 {[%clk 0:02:12]}  Qb5 {[%clk 0:01:55]} 23. Nc5 {[%clk 0:02:07]}  Qb4 {[%clk 0:01:41]} 24. Nxa6+ {[%clk 0:01:40]}  bxa6 {[%clk 0:01:37]} 25. Rxc6 {[%clk 0:01:40]}  Qxd2 {[%clk 0:01:32]} 26. Rxc8+ {[%clk 0:01:38]}  Rxc8 {[%clk 0:01:31]} 27. Rxd2 {[%clk 0:01:39]}  Rc1+ {[%clk 0:01:25]} 28. Kf2 {[%clk 0:01:39]}  Rb1 {[%clk 0:01:22]} 29. Nd4 {[%clk 0:01:36]}  Kb7 {[%clk 0:01:20]} 30. g4 {[%clk 0:01:36]}  h6 {[%clk 0:01:15]} 31. f5 {[%clk 0:01:32]}  exf5 {[%clk 0:01:14]} 32. gxf5 {[%clk 0:01:33]}  Bh5 {[%clk 0:01:14]} 33. Rc2 {[%clk 0:01:31]}  Rd1 {[%clk 0:01:06]} 34. Rc3 {[%clk 0:01:22]}  Rd2+ {[%clk 0:01:03]} 35. Ke3 {[%clk 0:01:22]}  Rxb2 {[%clk 0:01:02]} 36. Rc5 {[%clk 0:01:14]}  Rh2 {[%clk 0:00:56]} 37. Rxd5 {[%clk 0:01:13]}  Rxh3+ {[%clk 0:00:56]} 38. Kd2 {[%clk 0:01:13]}  Kc7 {[%clk 0:00:52]} 39. e6 {[%clk 0:01:03]}  fxe6 {[%clk 0:00:48]} 40. fxe6 {[%clk 0:00:57]}  Be8 {[%clk 0:00:47]} 41. e7 {[%clk 0:00:49]}  Rh2+ {[%clk 0:00:44]} 42. Kc3 {[%clk 0:00:48]}  Rxa2 {[%clk 0:00:43]} 43. Rd8 {[%clk 0:00:41]}  Bh5 {[%clk 0:00:43]} 44. Ne6+ {[%clk 0:00:36]}  Kb6 {[%clk 0:00:40]} 45. Nxg7 {[%clk 0:00:36]}  Bg6 {[%clk 0:00:39]} 46. Rd6+ {[%clk 0:00:36]}  Kc7 {[%clk 0:00:38]} 47. Rxg6 {[%clk 0:00:37]}  Re2 {[%clk 0:00:37]} 48. e8=Q {[%clk 0:00:34]} 1-0


[Site "https://www.chess.com"]

[Event "Titled Tuesday Blitz February 07 Late 2023"]
[White "Petrovic, Aleksa"]
[Black "Jarocka, Liwia"]
[WhiteFideId "967629"]
[BlackFideId "21807558"]
[WhiteElo "2332"]
[BlackElo "2225"]
[Result "1-0"]
[Round "05"]
[TimeControl "180+2"]
[Date "2023.02.07"]
[WhiteClock "0:00:11"]
[BlackClock "0:00:13"]

1. d4 {[%clk 0:02:57]}  d5 {[%clk 0:02:59]} 2. c4 {[%clk 0:02:56]}  c6 {[%clk 0:02:59]} 3. Nf3 {[%clk 0:02:52]}  Nf6 {[%clk 0:02:58]} 4. Nc3 {[%clk 0:02:52]}  e6 {[%clk 0:02:58]} 5. Bg5 {[%clk 0:02:50]}  h6 {[%clk 0:02:58]} 6. Bxf6 {[%clk 0:02:50]}  Qxf6 {[%clk 0:02:58]} 7. Qb3 {[%clk 0:02:50]}  Nd7 {[%clk 0:02:53]} 8. Rd1 {[%clk 0:02:50]}  dxc4 {[%clk 0:02:51]} 9. Qxc4 {[%clk 0:02:50]}  Nb6 {[%clk 0:02:51]} 10. Qb3 {[%clk 0:02:50]}  Be7 {[%clk 0:02:49]} 11. g3 {[%clk 0:02:47]}  O-O {[%clk 0:02:49]} 12. Bg2 {[%clk 0:02:48]}  Rd8 {[%clk 0:02:39]} 13. O-O {[%clk 0:02:47]}  Qg6 {[%clk 0:02:27]} 14. a4 {[%clk 0:02:43]}  Qh5 {[%clk 0:02:25]} 15. h3 {[%clk 0:02:38]}  Qa5 {[%clk 0:02:22]} 16. Ne5 {[%clk 0:02:34]}  Nd5 {[%clk 0:02:20]} 17. Ne4 {[%clk 0:02:24]}  Qb4 {[%clk 0:02:14]} 18. Qc2 {[%clk 0:02:23]}  Bd7 {[%clk 0:02:08]} 19. e3 {[%clk 0:02:17]}  Be8 {[%clk 0:02:06]} 20. Nd3 {[%clk 0:02:07]}  Qa5 {[%clk 0:02:04]} 21. Nec5 {[%clk 0:02:06]}  Qc7 {[%clk 0:01:54]} 22. Rb1 {[%clk 0:01:57]}  b6 {[%clk 0:01:53]} 23. Ne4 {[%clk 0:01:56]}  Rac8 {[%clk 0:01:51]} 24. Rfc1 {[%clk 0:01:56]}  Qb7 {[%clk 0:01:37]} 25. b4 {[%clk 0:01:53]}  f5 {[%clk 0:01:34]} 26. Nd2 {[%clk 0:01:47]}  Bg6 {[%clk 0:01:32]} 27. Ne5 {[%clk 0:01:42]}  Be8 {[%clk 0:01:31]} 28. Bf1 {[%clk 0:01:31]}  Nxb4 {[%clk 0:01:30]} 29. Qb3 {[%clk 0:01:18]}  Nd5 {[%clk 0:01:27]} 30. a5 {[%clk 0:01:17]}  b5 {[%clk 0:01:21]} 31. Nd3 {[%clk 0:01:12]}  a6 {[%clk 0:01:20]} 32. Nc5 {[%clk 0:00:41]}  Bxc5 {[%clk 0:01:17]} 33. Rxc5 {[%clk 0:00:42]}  Qc7 {[%clk 0:01:15]} 34. Qa3 {[%clk 0:00:36]}  Qe7 {[%clk 0:01:10]} 35. Nf3 {[%clk 0:00:31]}  g5 {[%clk 0:01:01]} 36. Ne5 {[%clk 0:00:30]}  Qg7 {[%clk 0:00:58]} 37. Rbc1 {[%clk 0:00:25]}  f4 {[%clk 0:00:48]} 38. Nxc6 {[%clk 0:00:20]}  Bxc6 {[%clk 0:00:32]} 39. Rxc6 {[%clk 0:00:21]}  Rxc6 {[%clk 0:00:32]} 40. Rxc6 {[%clk 0:00:21]}  fxg3 {[%clk 0:00:32]} 41. fxg3 {[%clk 0:00:19]}  Qf7 {[%clk 0:00:32]} 42. Bg2 {[%clk 0:00:15]}  Rf8 {[%clk 0:00:28]} 43. Rc2 {[%clk 0:00:08]}  Qf5 {[%clk 0:00:23]} 44. e4 {[%clk 0:00:08]}  Qg6 {[%clk 0:00:19]} 45. Rf2 {[%clk 0:00:08]}  Rxf2 {[%clk 0:00:18]} 46. Kxf2 {[%clk 0:00:08]}  Qf6+ {[%clk 0:00:18]} 47. Ke2 {[%clk 0:00:09]}  Ne7 {[%clk 0:00:18]} 48. Qc3 {[%clk 0:00:09]}  Ng6 {[%clk 0:00:16]} 49. Qc5 {[%clk 0:00:08]}  h5 {[%clk 0:00:15]} 50. e5 {[%clk 0:00:09]}  Qf5 {[%clk 0:00:15]} 51. Qc8+ {[%clk 0:00:09]}  Kh7 {[%clk 0:00:14]} 52. Qb7+ {[%clk 0:00:09]}  Kh6 {[%clk 0:00:15]} 53. Be4 {[%clk 0:00:09]}  Qf8 {[%clk 0:00:14]} 54. Bxg6 {[%clk 0:00:09]}  Kxg6 {[%clk 0:00:14]} 55. Qe4+ {[%clk 0:00:09]}  Kh6 {[%clk 0:00:14]} 56. d5 {[%clk 0:00:09]}  Qa3 {[%clk 0:00:13]} 57. dxe6 {[%clk 0:00:09]}  Qa2+ {[%clk 0:00:13]} 58. Ke3 {[%clk 0:00:09]}  Qxe6 {[%clk 0:00:14]} 59. Qd4 {[%clk 0:00:10]}  Qb3+ {[%clk 0:00:14]} 60. Ke4 {[%clk 0:00:10]}  Qc2+ {[%clk 0:00:14]} 61. Kd5 {[%clk 0:00:10]}  Qa2+ {[%clk 0:00:14]} 62. Kd6 {[%clk 0:00:10]}  Qxa5 {[%clk 0:00:15]} 63. e6 {[%clk 0:00:10]}  Qa3+ {[%clk 0:00:15]} 64. Kd7 {[%clk 0:00:11]}  b4 {[%clk 0:00:15]} 65. e7 {[%clk 0:00:11]}  Qa4+ {[%clk 0:00:15]} 66. Ke6 {[%clk 0:00:10]}  Qc6+ {[%clk 0:00:15]} 67. Qd6 {[%clk 0:00:10]}  Qe4+ {[%clk 0:00:15]} 68. Kd7+ {[%clk 0:00:11]}  Kh7 {[%clk 0:00:13]} 69. e8=Q {[%clk 0:00:11]} 1-0


[Site "https://www.chess.com"]

[Event "Titled Tuesday Blitz February 07 Late 2023"]
[White "Malicka, Maria"]
[Black "Zochowski, Kacper"]
[WhiteFideId "1197576"]
[BlackFideId "1125494"]
[WhiteElo "2255"]
[BlackElo "2262"]
[Result "0-1"]
[Round "05"]
[TimeControl "180+2"]
[Date "2023.02.07"]
[WhiteClock "0:01:52"]
[BlackClock "0:00:32"]

1. e4 {[%clk 0:02:53]}  d6 {[%clk 0:03:00]} 2. d4 {[%clk 0:02:52]}  Nf6 {[%clk 0:02:58]} 3. Nc3 {[%clk 0:02:50]}  e5 {[%clk 0:02:59]} 4. Nf3 {[%clk 0:02:48]}  Nbd7 {[%clk 0:02:56]} 5. Rg1 {[%clk 0:02:48]}  g6 {[%clk 0:02:47]} 6. g4 {[%clk 0:02:46]}  Bg7 {[%clk 0:02:44]} 7. g5 {[%clk 0:02:46]}  Nh5 {[%clk 0:02:43]} 8. Be3 {[%clk 0:02:46]}  O-O {[%clk 0:02:39]} 9. Qd2 {[%clk 0:02:46]}  c6 {[%clk 0:02:40]} 10. O-O-O {[%clk 0:02:44]}  Qa5 {[%clk 0:02:33]} 11. Kb1 {[%clk 0:02:42]}  b5 {[%clk 0:02:28]} 12. dxe5 {[%clk 0:02:34]}  dxe5 {[%clk 0:02:24]} 13. Nd5 {[%clk 0:02:28]}  Qd8 {[%clk 0:01:42]} 14. Bh3 {[%clk 0:02:11]}  Nb6 {[%clk 0:00:39]} 15. Nxb6 {[%clk 0:02:09]}  Qxd2 {[%clk 0:00:35]} 16. Rxd2 {[%clk 0:02:06]}  axb6 {[%clk 0:00:35]} 17. Bxc8 {[%clk 0:02:05]}  Rfxc8 {[%clk 0:00:35]} 18. Bxb6 {[%clk 0:02:06]}  Nf4 {[%clk 0:00:35]} 19. Bc5 {[%clk 0:02:04]}  Ne6 {[%clk 0:00:35]} 20. Bd6 {[%clk 0:02:03]}  Nd4 {[%clk 0:00:32]} 21. Nxe5 {[%clk 0:01:55]}  Bxe5 {[%clk 0:00:31]} 22. Bxe5 {[%clk 0:01:54]}  Nf3 {[%clk 0:00:32]} 23. Bf4 {[%clk 0:01:53]}  Nxg1 {[%clk 0:00:32]} 24. Rd1 {[%clk 0:01:52]} 0-1


[Site "https://www.chess.com"]